[Event "7th Leer Open-B 2024"]
[Site "Leer"]
[Date "2024.10.31"]
[Round "1.12"]
[White "Heutling, Thomas"]
[Black "Sviridov, Vitaliy"]
[Result "0-1"]
[ECO "D06"]
[WhiteElo "1618"]
[BlackElo "1772"]
[Annotator "NA RC"]
[PlyCount "94"]
[EventDate "2024.10.14"]
[EventType "swiss"]
[EventCountry "GER"]
[SourceTitle "playchess.com"]
[Source "ChessBase"]
[SourceQuality "1"]
[TimeControl "40/5400+30:900+30"]

1. c4 {[%emt 0:00:05]} Nf6 {[%emt 0:00:56]} 2. Nc3 {[%emt 0:00:21]} d5 {[%emt 0:00:38]} 3. cxd5 {[%emt 0:00:48]} Nxd5 {[%emt 0:00:05]} 4. d4 {[%emt 0:00:47]} Bf5 {[%emt 0:01:45]} 5. Nf3 {[%emt 0:03:40]} Nxc3 {[%emt 0:05:09]} 6. bxc3 {[%emt 0:00:41]} e6 {[%emt 0:00:31]} 7. e3 {[%emt 0:02:31]} Bd6 {[%emt 0:00:34]} 8. Bc4 {[%emt 0:06:21]} O-O {[%emt 0:03:19]} 9. O-O {[%emt 0:01:15]} Nd7 {[%emt 0:00:18]} 10. Re1 {[%emt 0:02:17]} Be4 {[%emt 0:02:43]} 11. Bd3 {[%emt 0:03:24]} Nf6 {[%emt 0:01:29]} 12. Bxe4 {[%emt 0:02:29]} Nxe4 {[%emt 0:00:03]} 13. Qd3 {[%emt 0:03:10]} f5 {[%emt 0:11:45]} 14. Bb2 {[%emt 0:11:18]} Rf7 {[%emt 0:05:47]} 15. c4 {[%emt 0:01:39]} c6 {[%emt 0:00:48]} 16. a3 {[%emt 0:04:15]} Rd7 {[%emt 0:01:09]} 17. Rad1 {[%emt 0:01:32]} Bc7 {[%emt 0:01:41]} 18. Bc1 {[%emt 0:05:21]} Qf6 {[%emt 0:00:52]} 19. Nd2 {[%emt 0:03:38]} Bxh2+ {[%emt 0:10:16]} 20. Kxh2 {[%emt 0:00:27]} Qh4+ {[%emt 0:00:03]} 21. Kg1 {[%emt 0:00:08]} Qxf2+ {[%emt 0:00:08]} 22. Kh2 {[%emt 0:00:48]} Qg3+ {[%emt 0:05:36]} 23. Kg1 {[%emt 0:00:46]} Nf2 {[%emt 0:01:05]} 24. Qf1 {[%emt 0:06:01]} Nxd1 {[%emt 0:01:49]} 25. Rxd1 {[%emt 0:00:40]} Qxe3+ {[%emt 0:00:07]} 26. Kh1 {[%emt 0:00:36]} Qxd4 {[%emt 0:01:20]} 27. Qe2 {[%emt 0:01:43]} Rad8 {[%emt 0:00:15]} 28. Qxe6+ {[%emt 0:01:53]} Kh8 {[%emt 0:00:08]} 29. Qxf5 {[%emt 0:00:47]} Rd6 {[%emt 0:00:13]} 30. g4 {[%emt 0:02:52]} Rf6 {[%emt 0:01:06]} 31. Qg5 {[%emt 0:02:37]} Rh6+ {[%emt 0:03:03]} 32. Kg2 {[%emt 0:00:54]} Rg6 {[%emt 0:00:05]} 33. Qxg6 {[%emt 0:00:53]} hxg6 {[%emt 0:00:11]} 34. Rh1+ {[%emt 0:00:45]} Kg8 {[%emt 0:00:01]} 35. Kg3 {[%emt 0:01:21]} Qe3+ {[%emt 0:00:17]} 36. Nf3 {[%emt 0:04:52]} Qb3 {[%emt 0:00:24]} 37. c5 {[%emt 0:02:21]} Rd3 {[%emt 0:00:05]} 38. Rf1 {[%emt 0:01:04]} Qc3 {[%emt 0:00:03]} 39. Kg2 {[%emt 0:01:55]} Rxf3 {[%emt 0:00:17]} 40. Rxf3 {[%emt 0:00:42]} Qc2+ {[%emt 0:00:03]} 41. Kg3 {[%emt 0:16:29]} Qxc1 {[%emt 0:15:03]} 42. Rd3 {[%emt 0:00:59]} Qxc5 {[%emt 0:00:19]} 43. Kf4 {[%emt 0:00:49]} g5+ {[%emt 0:00:10]} 44. Kf3 {[%emt 0:00:35]} b5 {[%emt 0:00:20]} 45. Rd8+ {[%emt 0:00:47]} Kf7 {[%emt 0:00:05]} 46. Rd7+ {[%emt 0:00:31]} Ke6 {[%emt 0:00:07]} 47. Rxa7 {[%emt 0:00:44]} Qxa7 {[%emt 0:00:08]} 0-1

[Event "7th Leer Open-B 2024"]
[Site "Leer"]
[Date "2024.10.31"]
[Round "1.12"]
[White "Wilting, Oskar"]
[Black "Fize, Aleksandrs"]
[Result "0-1"]
[ECO "D00"]
[WhiteElo "1490"]
[BlackElo "1711"]
[Annotator "NA RC"]
[PlyCount "88"]
[EventDate "2024.10.14"]
[EventType "swiss"]
[EventCountry "GER"]
[SourceTitle "playchess.com"]
[Source "ChessBase"]
[SourceQuality "1"]
[TimeControl "40/5400+30:900+30"]

1. d4 {[%emt 0:00:03]} d5 {[%emt 0:00:07]} 2. Nc3 {[%emt 0:00:07]} Nf6 {[%emt 0:00:05]} 3. Bf4 {[%emt 0:00:08]} c6 {[%emt 0:00:04]} 4. e3 {[%emt 0:00:17]} Bf5 {[%emt 0:00:07]} 5. f3 {[%emt 0:00:13]} h6 {[%emt 0:00:04]} 6. g4 {[%emt 0:00:13]} Bh7 {[%emt 0:00:05]} 7. h4 {[%emt 0:01:03]} Nbd7 {[%emt 0:00:41]} 8. Bd3 {[%emt 0:00:36]} Bxd3 {[%emt 0:00:09]} 9. Qxd3 {[%emt 0:00:14]} e6 {[%emt 0:00:25]} 10. Nge2 {[%emt 0:00:45]} Nb6 {[%emt 0:00:07]} 11. O-O-O {[%emt 0:02:08]} Bd6 {[%emt 0:00:35]} 12. g5 {[%emt 0:04:12]} Nh5 {[%emt 0:00:07]} 13. g6 {[%emt 0:02:11]} f6 {[%emt 0:00:06]} 14. Rhg1 {[%emt 0:05:11]} Qc7 {[%emt 0:01:38]} 15. Bxd6 {[%emt 0:01:29]} Qxd6 {[%emt 0:00:20]} 16. e4 {[%emt 0:04:35]} Nc4 {[%emt 0:00:41]} 17. Na4 {[%emt 0:05:19]} b5 {[%emt 0:03:28]} 18. Nc5 {[%emt 0:00:13]} a5 {[%emt 0:00:31]} 19. Rdf1 {[%emt 0:10:19]} Nf4 {[%emt 0:03:52]} 20. Qd1 {[%emt 0:01:16]} Ne3 {[%emt 0:00:26]} 21. Qd2 {[%emt 0:00:28]} Nxe2+ {[%emt 0:00:12]} 22. Qxe2 {[%emt 0:00:17]} Nxf1 {[%emt 0:00:06]} 23. Rxf1 {[%emt 0:00:28]} O-O-O {[%emt 0:00:39]} 24. f4 {[%emt 0:01:30]} Rhe8 {[%emt 0:00:33]} 25. e5 {[%emt 0:00:47]} Qf8 {[%emt 0:00:38]} 26. a4 {[%emt 0:02:00]} Kc7 {[%emt 0:04:21]} 27. axb5 {[%emt 0:01:52]} Ra8 {[%emt 0:00:05]} 28. f5 {[%emt 0:02:56]} exf5 {[%emt 0:00:34]} 29. e6 {[%emt 0:01:15]} Qd6 {[%emt 0:00:25]} 30. Rxf5 {[%emt 0:02:04]} a4 {[%emt 0:01:52]} 31. Qd3 {[%emt 0:04:54]} Ra5 {[%emt 0:23:42]} 32. Qa3 {[%emt 0:01:19]} cxb5 {[%emt 0:01:34]} 33. Rf3 {[%emt 0:04:20]} Qb6 {[%emt 0:06:47]} 34. Qb4 {[%emt 0:04:21]} Ra7 {[%emt 0:01:22]} 35. Rc3 {[%emt 0:00:47]} Kd8 {[%emt 0:01:49]} 36. Re3 {[%emt 0:09:25]} Ree7 {[%emt 0:00:56]} 37. Re1 {[%emt 0:05:51]} Qa5 {[%emt 0:01:36]} 38. Nb7+ {[%emt 0:04:18]} Rexb7 {[%emt 0:00:48]} 39. Qf8+ {[%emt 0:02:42]} Kc7 {[%emt 0:00:21]} 40. Qe7+ {[%emt 0:00:09]} Kc8 {[%emt 0:00:14]} 41. Qf8+ {[%emt 0:17:00]} Qd8 {[%emt 0:15:16]} 42. Qc5+ {[%emt 0:01:07]} Kb8 {[%emt 0:01:32]} 43. e7 {[%emt 0:04:25]} Rxe7 {[%emt 0:00:20]} 44. Qxb5+ {[%emt 0:00:39]} Rab7 {[%emt 0:00:11]} 0-1

[Event "7th Leer Open-B 2024"]
[Site "Leer"]
[Date "2024.10.31"]
[Round "1.13"]
[White "Beeck, Sebastian"]
[Black "Tanukusuma, Kyllian Gotthold"]
[Result "1-0"]
[ECO "B13"]
[WhiteElo "1768"]
[BlackElo "1618"]
[Annotator "NA RC"]
[PlyCount "51"]
[EventDate "2024.10.14"]
[EventType "swiss"]
[EventCountry "GER"]
[SourceTitle "playchess.com"]
[Source "ChessBase"]
[SourceQuality "1"]
[TimeControl "40/5400+30:900+30"]

1. e4 {[%emt 0:00:07]} c6 {[%emt 0:00:03]} 2. d4 {[%emt 0:00:12]} d5 {[%emt 0:00:03]} 3. exd5 {[%emt 0:00:26]} cxd5 {[%emt 0:00:12]} 4. Bd3 {[%emt 0:00:10]} Nc6 {[%emt 0:00:21]} 5. c3 {[%emt 0:00:12]} Nf6 {[%emt 0:00:13]} 6. Bf4 {[%emt 0:00:09]} Bg4 {[%emt 0:00:18]} 7. Qb3 {[%emt 0:00:22]} Qd7 {[%emt 0:01:25]} 8. Nd2 {[%emt 0:00:21]} e6 {[%emt 0:00:35]} 9. Ngf3 {[%emt 0:00:35]} Na5 {[%emt 0:08:29]} 10. Qc2 {[%emt 0:02:26]} Bd6 {[%emt 0:10:55]} 11. Ne5 {[%emt 0:04:40]} Bxe5 {[%emt 0:00:30]} 12. Bxe5 {[%emt 0:00:13]} h6 {[%emt 0:00:14]} 13. Bxf6 {[%emt 0:02:03]} gxf6 {[%emt 0:00:10]} 14. h3 {[%emt 0:00:21]} Bf5 {[%emt 0:00:28]} 15. Bxf5 {[%emt 0:00:16]} exf5 {[%emt 0:00:04]} 16. O-O {[%emt 0:03:12]} Rg8 {[%emt 0:02:16]} 17. Rfe1+ {[%emt 0:02:22]} Kf8 {[%emt 0:00:13]} 18. Nf3 {[%emt 0:04:49]} Kg7 {[%emt 0:07:04]} 19. Nh4 {[%emt 0:01:48]} f4 {[%emt 0:00:40]} 20. Nf5+ {[%emt 0:03:05]} Kh8 {[%emt 0:01:11]} 21. Re7 {[%emt 0:00:53]} Qc8 {[%emt 0:01:15]} 22. Rxf7 {[%emt 0:03:06]} Qb8 {[%emt 0:04:09]} 23. Ne7 {[%emt 0:09:07]} Rg7 {[%emt 0:00:20]} 24. Rxg7 {[%emt 0:00:49]} Kxg7 {[%emt 0:00:02]} 25. Qg6+ {[%emt 0:00:15]} Kf8 {[%emt 0:00:08]} 26. Re1 {[%emt 0:00:20]} 1-0

[Event "7th Leer Open-B 2024"]
[Site "Leer"]
[Date "2024.10.31"]
[Round "1.13"]
[White "Wilting, Oskar"]
[Black "Fize, Aleksandrs"]
[Result "*"]
[ECO "D94"]
[WhiteElo "1490"]
[BlackElo "1711"]
[Annotator "NA RC"]
[PlyCount "29"]
[EventDate "2024.10.14"]
[EventType "swiss"]
[EventCountry "GER"]
[SourceTitle "playchess.com"]
[Source "ChessBase"]
[SourceQuality "1"]
[TimeControl "40/5400+30:900+30"]

1. d4 {[%emt 1:31:00]} Nf6 {[%emt 0:02:20]} 2. e3 {[%emt 0:00:00]} g6 {[%emt 0:00:50]} 3. Nf3 {[%emt 0:00:00]} Bg7 {[%emt 0:00:41]} 4. Be2 {[%emt 0:00:00]} b6 {[%emt 0:00:59]} 5. c4 {[%emt 0:00:00]} Bb7 {[%emt 0:01:48]} 6. Nc3 {[%emt 0:00:00]} O-O {[%emt 0:01:40]} 7. O-O {[%emt 0:00:00]} d5 {[%emt 0:03:46]} 8. b3 {[%emt 0:00:00]} Nbd7 {[%emt 0:01:17]} 9. Bb2 {[%emt 0:00:00]} Rc8 {[%emt 0:03:21]} 10. cxd5 {[%emt 0:00:00]} Nxd5 {[%emt 0:00:49]} 11. Nxd5 {[%emt 0:00:00]} Bxd5 {[%emt 0:00:35]} 12. Rc1 {[%emt 0:00:00]} c5 {[%emt 0:07:39]} 13. Qd2 {[%emt 0:00:00]} Nf6 {[%emt 0:04:55]} 14. Qd3 {[%emt 0:00:00]} Be4 {[%emt 0:07:32]} 15. Qd1 {[%emt 0:00:00]} *

[Event "7th Leer Open-B 2024"]
[Site "Leer"]
[Date "2024.10.31"]
[Round "1.14"]
[White "Schacht, Malte"]
[Black "Wilmink, Luca"]
[Result "0-1"]
[ECO "A45"]
[WhiteElo "1617"]
[BlackElo "1712"]
[Annotator "NA RC"]
[PlyCount "72"]
[EventDate "2024.10.14"]
[EventType "swiss"]
[EventCountry "GER"]
[SourceTitle "playchess.com"]
[Source "ChessBase"]
[SourceQuality "1"]
[TimeControl "40/5400+30:900+30"]

1. d4 {[%emt 0:00:01]} Nf6 {[%emt 0:00:18]} 2. Bg5 {[%emt 0:01:26]} g6 {[%emt 0:01:43]} 3. Bxf6 {[%emt 0:01:28]} exf6 {[%emt 0:00:20]} 4. e4 {[%emt 0:00:14]} Bg7 {[%emt 0:01:16]} 5. Nf3 {[%emt 0:01:01]} d6 {[%emt 0:02:55]} 6. Nc3 {[%emt 0:01:21]} O-O {[%emt 0:01:27]} 7. Bc4 {[%emt 0:00:29]} f5 {[%emt 0:01:20]} 8. O-O {[%emt 0:00:23]} fxe4 {[%emt 0:01:41]} 9. Ne1 {[%emt 0:03:25]} Nc6 {[%emt 0:11:35]} 10. d5 {[%emt 0:03:21]} Ne5 {[%emt 0:00:31]} 11. Be2 {[%emt 0:02:50]} f5 {[%emt 0:00:21]} 12. Qd2 {[%emt 0:01:54]} c5 {[%emt 0:04:35]} 13. dxc6 {[%emt 0:03:45]} bxc6 {[%emt 0:00:32]} 14. f4 {[%emt 0:02:04]} Nf7 {[%emt 0:00:48]} 15. Na4 {[%emt 0:00:19]} d5 {[%emt 0:02:57]} 16. Qb4 {[%emt 0:04:40]} Qc7 {[%emt 0:03:08]} 17. c3 {[%emt 0:00:46]} Re8 {[%emt 0:04:18]} 18. Nc2 {[%emt 0:01:18]} Rb8 {[%emt 0:01:07]} 19. Qc5 {[%emt 0:00:45]} Nd8 {[%emt 0:04:59]} 20. Rad1 {[%emt 0:02:12]} Ne6 {[%emt 0:00:33]} 21. Qf2 {[%emt 0:00:26]} Qa5 {[%emt 0:00:45]} 22. b3 {[%emt 0:02:15]} Bxc3 {[%emt 0:01:19]} 23. Nxc3 {[%emt 0:00:09]} Qxc3 {[%emt 0:00:09]} 24. Nd4 {[%emt 0:00:40]} e3 {[%emt 0:00:54]} 25. Qe1 {[%emt 0:03:06]} Qxe1 {[%emt 0:01:16]} 26. Rfxe1 {[%emt 0:01:26]} Nxd4 {[%emt 0:00:25]} 27. Rxd4 {[%emt 0:00:17]} Bb7 {[%emt 0:00:17]} 28. b4 {[%emt 0:02:46]} Re4 {[%emt 0:02:18]} 29. Rxe4 {[%emt 0:01:52]} fxe4 {[%emt 0:00:10]} 30. Bd1 {[%emt 0:02:12]} d4 {[%emt 0:00:11]} 31. Bb3+ {[%emt 0:01:41]} Kg7 {[%emt 0:00:09]} 32. Bc4 {[%emt 0:03:01]} Rd8 {[%emt 0:00:25]} 33. g4 {[%emt 0:00:43]} Rf8 {[%emt 0:01:50]} 34. Rf1 {[%emt 0:00:48]} d3 {[%emt 0:00:10]} 35. Be6 {[%emt 0:02:47]} e2 {[%emt 0:00:15]} 36. f5 {[%emt 0:03:49]} d2 {[%emt 0:01:27]} 0-1

[Event "7th Leer Open-B 2024"]
[Site "Leer"]
[Date "2024.10.31"]
[Round "1.14"]
[White "Limper, Cornelia"]
[Black "Ebeling, Hans-Juergen"]
[Result "1/2-1/2"]
[ECO "A30"]
[WhiteElo "1483"]
[BlackElo "1710"]
[Annotator "NA RC"]
[PlyCount "32"]
[EventDate "2024.10.14"]
[EventType "swiss"]
[EventCountry "GER"]
[SourceTitle "playchess.com"]
[Source "ChessBase"]
[SourceQuality "1"]
[TimeControl "40/5400+30:900+30"]

1. Nf3 {[%emt 0:00:11]} Nf6 {[%emt 0:00:13]} 2. c4 {[%emt 0:00:43]} c5 {[%emt 0:00:16]} 3. g3 {[%emt 0:01:22]} g6 {[%emt 0:00:11]} 4. Bg2 {[%emt 0:00:59]} Bg7 {[%emt 0:00:13]} 5. a3 {[%emt 0:01:08]} a6 {[%emt 0:00:13]} 6. O-O {[%emt 0:01:29]} O-O {[%emt 0:00:16]} 7. d4 {[%emt 0:00:39]} d5 {[%emt 0:02:22]} 8. b3 {[%emt 0:02:29]} e6 {[%emt 0:03:03]} 9. Nc3 {[%emt 0:01:55]} b6 {[%emt 0:02:38]} 10. Re1 {[%emt 0:02:29]} Bb7 {[%emt 0:00:35]} 11. Ne5 {[%emt 0:04:43]} Nbd7 {[%emt 0:01:59]} 12. Bf4 {[%emt 0:02:23]} Nh5 {[%emt 0:02:01]} 13. Nxd7 {[%emt 0:00:42]} Qxd7 {[%emt 1:23:00]} 14. e3 {[%emt 0:03:20]} Nxf4 {[%emt 0:00:00]} 15. gxf4 {[%emt 0:00:35]} dxc4 {[%emt 0:00:00]} 16. Bxb7 {[%emt 0:04:23]} Qxb7 {[%emt 0:00:00]} 1/2-1/2

[Event "7th Leer Open-B 2024"]
[Site "Leer"]
[Date "2024.10.31"]
[Round "1.15"]
[White "Ristedt, Mathis"]
[Black "Suberski, Lukas"]
[Result "1-0"]
[ECO "D00"]
[WhiteElo "1761"]
[BlackElo "1611"]
[Annotator "NA RC"]
[PlyCount "69"]
[EventDate "2024.10.14"]
[EventType "swiss"]
[EventCountry "GER"]
[SourceTitle "playchess.com"]
[Source "ChessBase"]
[SourceQuality "1"]
[TimeControl "40/5400+30:900+30"]

1. d4 {[%emt 0:00:03]} Nf6 {[%emt 0:00:15]} 2. Bg5 {[%emt 0:00:22]} d5 {[%emt 0:01:41]} 3. Bxf6 {[%emt 0:00:12]} exf6 {[%emt 0:00:15]} 4. e3 {[%emt 0:00:15]} Bd6 {[%emt 0:01:19]} 5. g3 {[%emt 0:00:30]} Nd7 {[%emt 0:02:20]} 6. Bg2 {[%emt 0:02:14]} c6 {[%emt 0:00:07]} 7. Ne2 {[%emt 0:01:47]} f5 {[%emt 0:01:32]} 8. Nd2 {[%emt 0:02:30]} O-O {[%emt 0:01:01]} 9. O-O {[%emt 0:00:18]} Nf6 {[%emt 0:01:08]} 10. c4 {[%emt 0:02:44]} Be6 {[%emt 0:03:45]} 11. a3 {[%emt 0:24:48]} Ne4 {[%emt 0:02:20]} 12. cxd5 {[%emt 0:04:22]} cxd5 {[%emt 0:01:31]} 13. Nf3 {[%emt 0:05:44]} Rc8 {[%emt 0:10:41]} 14. Nc1 {[%emt 0:10:14]} Qc7 {[%emt 0:05:07]} 15. Nd3 {[%emt 0:41:57]} Qc2 {[%emt 0:00:08]} 16. Rc1 {[%emt 0:00:00]} Qxd1 {[%emt 0:00:14]} 17. Rfxd1 {[%emt 0:00:00]} f6 {[%emt 0:02:02]} 18. Nfe1 {[%emt 0:00:00]} Bc7 {[%emt 0:02:34]} 19. Nc5 {[%emt 0:00:00]} Nxc5 {[%emt 0:01:42]} 20. Rxc5 {[%emt 0:00:00]} Rfd8 {[%emt 0:03:57]} 21. Rdc1 {[%emt 0:00:00]} Bb6 {[%emt 0:13:13]} 22. Bxd5 {[%emt 0:00:00]} Rxd5 {[%emt 0:00:16]} 23. Rxc8+ {[%emt 0:00:00]} Bxc8 {[%emt 0:00:10]} 24. Rxc8+ {[%emt 0:00:00]} Bd8 {[%emt 0:00:51]} 25. Nd3 {[%emt 0:00:00]} Kf8 {[%emt 0:01:02]} 26. Nc5 {[%emt 0:00:00]} Ke7 {[%emt 0:09:06]} 27. Nxb7 {[%emt 0:00:00]} Rd7 {[%emt 0:00:32]} 28. Nxd8 {[%emt 0:00:00]} Rxd8 {[%emt 0:00:06]} 29. Rxd8 {[%emt 0:00:00]} Kxd8 {[%emt 0:00:16]} 30. Kf1 {[%emt 0:00:00]} Kd7 {[%emt 0:00:08]} 31. Ke2 {[%emt 0:00:00]} Kd6 {[%emt 0:00:07]} 32. Kd3 {[%emt 0:00:00]} Kd5 {[%emt 0:00:17]} 33. f3 {[%emt 0:00:00]} g5 {[%emt 0:03:13]} 34. e4+ {[%emt 0:00:00]} Ke6 {[%emt 0:00:07]} 35. g4 {[%emt 0:00:00]} 1-0

[Event "7th Leer Open-B 2024"]
[Site "Leer"]
[Date "2024.10.31"]
[Round "1.15"]
[White "von Haefen, Dieter"]
[Black "Noennig, Nina"]
[Result "1-0"]
[ECO "C41"]
[WhiteElo "1709"]
[BlackElo "1452"]
[Annotator "NA RC"]
[PlyCount "109"]
[EventDate "2024.10.14"]
[EventType "swiss"]
[EventCountry "GER"]
[SourceTitle "playchess.com"]
[Source "ChessBase"]
[SourceQuality "1"]
[TimeControl "40/5400+30:900+30"]

1. Nf3 {[%emt 0:00:06]} d6 {[%emt 0:00:44]} 2. d4 {[%emt 0:00:34]} Nc6 {[%emt 0:00:28]} 3. e4 {[%emt 0:00:35]} e5 {[%emt 0:01:44]} 4. dxe5 {[%emt 0:01:51]} dxe5 {[%emt 0:03:15]} 5. Qxd8+ {[%emt 0:00:08]} Kxd8 {[%emt 0:00:47]} 6. Bc4 {[%emt 0:00:29]} Be6 {[%emt 0:02:21]} 7. Bxe6 {[%emt 0:01:31]} fxe6 {[%emt 1:24:41]} 8. O-O {[%emt 0:00:24]} Kc8 {[%emt 0:00:00]} 9. Ng5 {[%emt 0:05:48]} Nf6 {[%emt 0:00:00]} 10. Nc3 {[%emt 0:02:02]} Nd4 {[%emt 0:00:00]} 11. Bd2 {[%emt 0:02:29]} h6 {[%emt 0:00:00]} 12. Nf7 {[%emt 0:00:30]} Rg8 {[%emt 0:00:00]} 13. Nxe5 {[%emt 0:00:38]} Nxc2 {[%emt 0:00:00]} 14. Rac1 {[%emt 0:00:18]} Nd4 {[%emt 0:00:00]} 15. Be3 {[%emt 0:02:43]} Bc5 {[%emt 0:00:00]} 16. Rfd1 {[%emt 0:02:00]} Rd8 {[%emt 0:00:00]} 17. Rd3 {[%emt 0:01:31]} Nxe4 {[%emt 0:00:00]} 18. Bxd4 {[%emt 0:08:43]} Rxd4 {[%emt 0:00:00]} 19. Nb5 {[%emt 0:09:00]} Rxd3 {[%emt 0:00:00]} 20. Nxd3 {[%emt 0:01:11]} b6 {[%emt 0:00:00]} 21. b4 {[%emt 0:00:23]} Bd6 {[%emt 0:00:00]} 22. f3 {[%emt 0:00:51]} a6 {[%emt 0:00:00]} 23. Nd4 {[%emt 0:02:10]} e5 {[%emt 0:00:00]} 24. Nf5 {[%emt 0:01:09]} g6 {[%emt 0:00:00]} 25. Nxh6 {[%emt 0:00:13]} Nf6 {[%emt 0:00:00]} 26. Nf7 {[%emt 0:00:18]} Kb7 {[%emt 0:00:00]} 27. Nfxe5 {[%emt 0:00:15]} a5 {[%emt 0:00:00]} 28. b5 {[%emt 0:00:49]} Bxe5 {[%emt 0:00:00]} 29. Nxe5 {[%emt 0:00:06]} g5 {[%emt 0:00:00]} 30. Nc6 {[%emt 0:04:11]} Re8 {[%emt 0:00:00]} 31. a4 {[%emt 0:00:33]} Nd7 {[%emt 0:00:40]} 32. Rc4 {[%emt 0:02:10]} Nc5 {[%emt 0:02:33]} 33. Kf2 {[%emt 0:00:46]} Nd3+ {[%emt 0:01:14]} 34. Kg3 {[%emt 0:00:23]} Re2 {[%emt 0:01:02]} 35. Nd4 {[%emt 0:00:58]} Ra2 {[%emt 0:02:17]} 36. Ne6 {[%emt 0:01:15]} Nc5 {[%emt 0:01:18]} 37. Nxc5+ {[%emt 0:00:21]} bxc5 {[%emt 0:00:20]} 38. h4 {[%emt 0:01:30]} gxh4+ {[%emt 0:01:30]} 39. Kxh4 {[%emt 0:00:32]} Kb6 {[%emt 0:00:12]} 40. g4 {[%emt 0:00:14]} c6 {[%emt 0:00:43]} 41. bxc6 {[%emt 0:15:32]} Kxc6 {[%emt 0:15:20]} 42. g5 {[%emt 0:00:17]} Rh2+ {[%emt 0:00:50]} 43. Kg3 {[%emt 0:00:17]} Rh7 {[%emt 0:01:28]} 44. f4 {[%emt 0:00:29]} Kd5 {[%emt 0:00:17]} 45. Rc1 {[%emt 0:00:19]} c4 {[%emt 0:02:29]} 46. g6 {[%emt 0:00:15]} Rg7 {[%emt 0:00:06]} 47. f5 {[%emt 0:00:17]} Ke5 {[%emt 0:00:20]} 48. Kg4 {[%emt 0:00:09]} Kf6 {[%emt 0:00:18]} 49. Rxc4 {[%emt 0:00:09]} Rg8 {[%emt 0:01:11]} 50. Rc6+ {[%emt 0:00:15]} Kg7 {[%emt 0:01:28]} 51. Kg5 {[%emt 0:00:16]} Re8 {[%emt 0:00:00]} 52. Rc7+ {[%emt 0:00:00]} Kg8 {[%emt 0:00:00]} 53. f6 {[%emt 0:00:00]} Re5+ {[%emt 0:00:00]} 54. Kh6 {[%emt 0:00:00]} Re6 {[%emt 0:00:00]} 55. Rc8+ {[%emt 0:00:00]} 1-0

[Event "7th Leer Open-B 2024"]
[Site "Leer"]
[Date "2024.10.31"]
[Round "1.15"]
[White "Limper, Cornelia"]
[Black "Ebeling, Hans-Juergen"]
[Result "*"]
[ECO "C41"]
[WhiteElo "1483"]
[BlackElo "1710"]
[Annotator "NA RC"]
[PlyCount "29"]
[EventDate "2024.10.14"]
[EventType "swiss"]
[EventCountry "GER"]
[SourceTitle "playchess.com"]
[Source "ChessBase"]
[SourceQuality "1"]
[TimeControl "40/5400+30:900+30"]

1. Nf3 {[%emt 0:00:06]} d6 {[%emt 0:00:44]} 2. d4 {[%emt 0:00:34]} Nc6 {[%emt 0:00:28]} 3. e4 {[%emt 0:00:35]} e5 {[%emt 0:01:44]} 4. dxe5 {[%emt 0:01:51]} dxe5 {[%emt 0:03:15]} 5. Qxd8+ {[%emt 0:00:08]} Kxd8 {[%emt 0:00:47]} 6. Bc4 {[%emt 0:00:29]} Be6 {[%emt 0:02:21]} 7. Bxe6 {[%emt 0:01:31]} fxe6 {[%emt 1:24:41]} 8. O-O {[%emt 0:00:24]} Kc8 {[%emt 0:00:00]} 9. Ng5 {[%emt 0:05:48]} Nf6 {[%emt 0:00:00]} 10. Nc3 {[%emt 0:02:02]} Nd4 {[%emt 0:00:00]} 11. Bd2 {[%emt 0:02:29]} h6 {[%emt 0:00:00]} 12. Nf7 {[%emt 1:20:33]} Rg8 {[%emt 0:00:00]} 13. Nxe5 {[%emt 0:00:38]} Nxc2 {[%emt 0:03:00]} 14. Rac1 {[%emt 0:00:18]} Nd4 {[%emt 0:00:00]} 15. Be3 {[%emt 0:02:43]} *

[Event "7th Leer Open-B 2024"]
[Site "Leer"]
[Date "2024.10.31"]
[Round "1.16"]
[White "von Haefen, Dieter"]
[Black "Noennig, Nina"]
[Result "*"]
[ECO "B12"]
[WhiteElo "1709"]
[BlackElo "1452"]
[Annotator "NA RC"]
[PlyCount "23"]
[EventDate "2024.10.14"]
[EventType "swiss"]
[EventCountry "GER"]
[SourceTitle "playchess.com"]
[Source "ChessBase"]
[SourceQuality "1"]
[TimeControl "40/5400+30:900+30"]

1. e4 {[%emt 0:00:05]} c6 {[%emt 0:00:21]} 2. d4 {[%emt 0:00:12]} d5 {[%emt 0:00:28]} 3. f3 {[%emt 0:00:31]} dxe4 {[%emt 0:02:58]} 4. fxe4 {[%emt 0:00:32]} Nf6 {[%emt 0:00:16]} 5. Nc3 {[%emt 0:00:24]} Bg4 {[%emt 0:00:43]} 6. Nf3 {[%emt 0:00:57]} e6 {[%emt 0:00:56]} 7. a3 {[%emt 0:00:59]} c5 {[%emt 0:03:37]} 8. e5 {[%emt 0:06:35]} Nd5 {[%emt 0:05:13]} 9. Nxd5 {[%emt 0:04:31]} Qxd5 {[%emt 0:01:01]} 10. Be3 {[%emt 0:01:02]} Nc6 {[%emt 0:04:46]} 11. dxc5 {[%emt 0:03:36]} Bxf3 {[%emt 0:01:59]} 12. Qxf3 {[%emt 0:01:11]} *

[Event "7th Leer Open-B 2024"]
[Site "Leer"]
[Date "2024.10.31"]
[Round "1.16"]
[White "Grooss, Jochen"]
[Black "Ahrens, Gunnar"]
[Result "1/2-1/2"]
[ECO "A41"]
[WhiteElo "1609"]
[BlackElo "1760"]
[Annotator "NA RC"]
[PlyCount "57"]
[EventDate "2024.10.14"]
[EventType "swiss"]
[EventCountry "GER"]
[SourceTitle "playchess.com"]
[Source "ChessBase"]
[SourceQuality "1"]
[TimeControl "40/5400+30:900+30"]

1. d4 {[%emt 0:00:03]} Nc6 {[%emt 0:00:16]} 2. Bf4 {[%emt 0:00:58]} d6 {[%emt 0:01:02]} 3. Nf3 {[%emt 0:01:53]} Bg4 {[%emt 0:01:40]} 4. e3 {[%emt 0:02:18]} e5 {[%emt 0:02:40]} 5. dxe5 {[%emt 0:04:48]} dxe5 {[%emt 0:00:35]} 6. Qxd8+ {[%emt 0:05:38]} Rxd8 {[%emt 0:00:09]} 7. Bg5 {[%emt 0:01:28]} f6 {[%emt 0:13:36]} 8. Bh4 {[%emt 0:00:43]} a6 {[%emt 0:04:42]} 9. a3 {[%emt 0:05:31]} Nge7 {[%emt 0:04:03]} 10. Bd3 {[%emt 0:09:53]} Nf5 {[%emt 0:04:59]} 11. Bg3 {[%emt 0:05:02]} Nxg3 {[%emt 0:05:04]} 12. hxg3 {[%emt 0:00:17]} f5 {[%emt 0:01:09]} 13. e4 {[%emt 0:03:07]} Bxf3 {[%emt 0:13:24]} 14. gxf3 {[%emt 0:00:14]} f4 {[%emt 0:07:30]} 15. Nd2 {[%emt 0:04:29]} g5 {[%emt 0:04:22]} 16. O-O-O {[%emt 0:02:31]} Bc5 {[%emt 0:02:32]} 17. Rh2 {[%emt 0:03:32]} Rd7 {[%emt 0:08:08]} 18. Bc4 {[%emt 0:06:10]} fxg3 {[%emt 0:03:00]} 19. fxg3 {[%emt 0:00:44]} Be3 {[%emt 0:00:28]} 20. Be6 {[%emt 0:09:34]} Rxd2 {[%emt 0:05:11]} 21. Rdxd2 {[%emt 0:00:41]} Nd4 {[%emt 0:00:44]} 22. Bg4 {[%emt 0:02:08]} Ke7 {[%emt 0:07:50]} 23. Kd1 {[%emt 0:02:34]} Bxd2 {[%emt 0:00:28]} 24. Kxd2 {[%emt 0:00:33]} h6 {[%emt 0:00:27]} 25. Ke3 {[%emt 0:04:10]} Nb5 {[%emt 0:01:53]} 26. a4 {[%emt 0:06:11]} Nd6 {[%emt 0:00:17]} 27. b3 {[%emt 0:00:44]} a5 {[%emt 0:01:06]} 28. Rd2 {[%emt 0:01:20]} c6 {[%emt 0:01:57]} 29. Bh3 {[%emt 0:06:13]} 1/2-1/2